fUST/lending_fUST_20240628
["ID","MTS","AMOUNT","RATE_DAILY","PERIOD"]
[330561462,1719572138627,947.99354244,0.00015,2]
[330561463,1719572144786,4826.71633385,0.00014999,2]
[330561464,1719572182170,2747.38522558,0.00015,2]
[330561465,1719572183825,2130.41057228,0.00014999,2]
[330561466,1719572189889,10564.8320491,0.00014998,2]
[330561468,1719572299641,325.70219597,0.00015,2]
[330561469,1719572339832,2130.41057228,0.00014999,2]
[330561470,1719572409495,304.85986265,0.00014999,2]
[330561471,1719572418050,848.86837099,0.00014999,2]
[330561472,1719572435814,3075.6789159,0.00014999,2]
[330561473,1719572476881,933.59102466,0.00014999,2]
[330561474,1719572488060,933.59102466,0.00014999,2]
[330561475,1719572573733,1351.30558106,0.00014999,2]
[330561476,1719572588308,779.64459774,0.00014999,2]
[330561477,1719572611355,779.89377542,0.00014999,2]
[330561478,1719572612527,1487.99362785,0.00014999,2]
[330561479,1719572628547,1487.99362785,0.00014999,2]
[330561480,1719572640800,184.51324443,0.00014999,2]
[330561481,1719572669130,4952.66855063,0.00014998,2]
[330561482,1719572739344,1489.67052162,0.00014999,2]
[330561483,1719572817137,2446.76197173,0.00014999,2]
[330561484,1719572830106,-648.50289162,0.00014999,2]
[330561485,1719572886321,232.3384118,9.999e-05,2]
[330561486,1719572886353,300.0,9.999e-05,2]
[330561487,1719572886384,640.21247381,9.999e-05,2]
[330561488,1719572886412,640.21247381,9.999e-05,2]
[330561489,1719572886442,324.20845706,9.999e-05,2]
[330561490,1719572886467,614.51071165,9.999e-05,2]
[330561491,1719572898822,817.59965437,9.999e-05,2]
[330561492,1719572948890,298.05043265,0.0001212,2]
[330561494,1719572951004,-678.3051419,0.00014999,2]
[330561496,1719572951096,-678.3051419,0.00014999,2]
[330561497,1719572951139,-423.49133533,0.00014999,2]
[330561498,1719572962133,-344.38907632,0.00014999,2]
[330561499,1719572962155,-776.11834176,0.00014999,2]
[330561500,1719572962176,-812.22332003,0.00014999,2]
[330561501,1719572962200,-300.0,0.00015118,2]
[330561502,1719572962222,-300.0,0.00015118,2]
[330561503,1719572962243,-24900.0,0.00015119,2]
[330561504,1719572962263,-597.963221,0.00015229,2]
[330561505,1719572962283,-4743.6095374,0.0001569,2]
[330561506,1719572962303,-3000.0,0.00016139,2]
[330561507,1719572962323,-4975.8705094,0.00016155,2]
[330561508,1719572962344,-1810.04273737,0.00016155,2]
[330561509,1719572962363,-1000.0,0.00016254,2]
[330561510,1719572962384,-42201.76063344,0.00016255,2]
[330561511,1719572962403,-155.02976936,0.00016255,2]
[330561512,1719572962432,-420.0,0.00016544,2]
[330561513,1719572962455,-420.0,0.0001663,2]
[330561514,1719572962479,-1000.0,0.00017624,2]
[330561515,1719572962499,-4975.87050938,0.00017955,2]
[330561516,1719572962527,-535.0,0.00018105,2]
[330561517,1719572962547,-163.738245,0.0001818,2]
[330561518,1719572962568,-2751.48252813,0.0001818,2]
[330561519,1719572962591,-587.0,0.00018293,2]
[330561520,1719572962612,-915.74624771,0.00018899,2]
[330561521,1719572962633,-185.58563525,0.00019178,2]
[330561522,1719572962652,-160.4601258,0.00019178,2]
[330561523,1719572962673,-500.0,0.00019178,2]
[330561524,1719572962693,-490.49460368,0.00019178,2]
[330561525,1719572962717,-21442.18333809,0.00019743,7]
[330561616,1719573038535,-215.05590229,0.00019165,2]
[330561617,1719573038544,-300.0,0.00019743,2]
[330561618,1719573038555,-2156.05633,0.00019744,2]
[330561693,1719573047283,-163.738245,0.00019744,2]
[330561694,1719573047498,-20330.32471277,0.00019744,2]
[330561703,1719573140738,249.78340205,0.00016255,2]
[330561706,1719573241076,532.22357579,9.999e-05,2]
[330561707,1719573291163,1618.66906895,9.999e-05,2]
[330561708,1719573297334,1616.08998774,9.999e-05,2]
[330561710,1719573365979,155.05042757,0.0001212,2]
[330561711,1719573387934,999.10133476,0.0001212,2]
[330561712,1719573389112,213.08307633,0.0001212,2]
[330561731,1719573553707,776.11834176,9.999e-05,2]
[330561733,1719573673865,2888.62063535,0.0001212,2]
[330561734,1719573673896,154.82195475,9.999e-05,2]
[330561735,1719573674195,776.11834176,0.0001212,2]
[330561736,1719573688219,154.82195475,9.999e-05,2]
[330561755,1719573824345,389.9277176,0.00013727,2]
[330561756,1719573856523,2106.3287191,0.00013727,2]
[330561757,1719573917942,208.8999916,9.999e-05,2]
[330561758,1719573965440,250.18589368,0.0001212,2]
[330561759,1719574010987,293.15113812,9.999e-05,2]
[330561760,1719574034447,3000.0,0.0001374,2]
[330561761,1719574047436,175.0232863,9.999e-05,2]
[330561762,1719574058963,427.57293099,0.0001212,2]
[330561763,1719574060496,193.5169947,0.0001212,2]
[330561764,1719574061461,154.83742071,0.0001212,2]
[330561765,1719574064790,2236.0511563,0.00013724,2]
[330561766,1719574086031,24900.0,0.00013727,2]
[330561767,1719574112446,297.99053283,9.999e-05,2]
[330561769,1719574148180,-661.20225,0.00014518,2]
[330561770,1719574154178,-7.724461,0.00014518,2]
[330561771,1719574154200,-250.0,0.00014618,2]
[330561772,1719574154224,-1682.8648674,0.00014687,2]
[330561773,1719574154245,-154.94486448,0.00014794,2]
[330561774,1719574154267,-300.0,0.00014997,2]
[330561775,1719574154289,-11123.32192726,0.00014998,2]
[330561776,1719574154309,-1433.52239716,0.00014999,2]
[330561777,1719574154328,-1756.81732532,0.00014999,2]
[330561778,1719574154351,-157.2682199,0.00014999,2]
[330561779,1719574154373,-1588.6988381,0.00016154,2]
[330561780,1719574154395,-2985.52230566,0.00016155,2]
[330561781,1719574154415,-1000.0,0.00016254,2]
[330561782,1719574154435,-39338.83110954,0.00016255,2]
[330561783,1719574154458,-420.0,0.00016497,2]
[330561784,1719574154481,-154.83742071,0.00016635,2]
[330561785,1719574154504,-776.11834176,0.00016639,2]
[330561786,1719574154528,-587.0,0.00018146,2]
[330561787,1719574154551,-1354.85759596,0.00018245,2]
[330561788,1719574158092,-155.00269854,0.00016255,2]
[330561789,1719574158116,-506.19955146,0.00018245,2]
[330561790,1719574159116,-661.20225,0.00018245,2]
[330561791,1719574160122,-463.2629082,0.00018245,2]
[330561792,1719574160145,-172.3010942,0.00018899,2]
[330561793,1719574160166,-303.31254547,0.00018899,2]
[330561794,1719574160189,-1356.93,0.00019,2]
[330561795,1719574160212,-221.55087959,0.00019165,2]
[330561796,1719574160234,-201.39739064,0.00019165,2]
[330561797,1719574160255,-155.19492539,0.00019165,2]
[330561798,1719574160275,-500.0,0.00019178,2]
[330561799,1719574160295,-531.384172,0.00019178,2]
[330561800,1719574160316,-500.0,0.00019178,2]
[330561801,1719574160336,-490.65106447,0.00019178,2]
[330561802,1719574160356,-163.751651,0.00019178,2]
[330561803,1719574160376,-249.78340205,0.00019432,2]
[330561804,1719574160397,-224.77989795,0.00019432,2]
[330561805,1719574160418,-822.08,0.00019613,3]
[330561806,1719574160440,-16251.23856388,0.00019623,2]
[330561824,1719574210306,157.2682199,0.0001212,2]
[330561825,1719574210842,42175.40753023,0.0001212,2]
[330561905,1719574241410,-180.48822306,0.00018899,2]
[330561906,1719574241421,-164.25106676,0.00018899,2]
[330561907,1719574241431,-300.0,0.00019622,2]
[330561908,1719574241440,-2002.10762636,0.00019623,2]
[330561971,1719574244375,-401.85436649,0.00019165,2]
[330561973,1719574244386,-11373.57411566,0.00019623,2]
[330561975,1719574244396,-545.7608137,0.0001963,2]
[330563973,1719574460422,300.40080784,9.999e-05,2]
[330563974,1719574460454,224.61856397,9.999e-05,2]
[330563975,1719574460478,41.04001017,9.999e-05,2]
[330563985,1719574490270,566.05938198,9.999e-05,2]
[330563993,1719574516018,3598.89620744,0.0001212,2]
[330563995,1719574537785,566.05938198,0.0001212,2]
[330563996,1719574545515,457.70686546,9.999e-05,2]
[330563997,1719574585488,154.82195475,9.999e-05,2]
[330563998,1719574606049,182.50017615,0.0001,2]
[330563999,1719574633515,457.70686546,9.999e-05,2]
[330564000,1719574635008,155.0484212,0.0001212,2]
[330564001,1719574652287,568.10870016,9.999e-05,2]
[330564002,1719574681430,154.82195475,9.999e-05,2]
[330564003,1719574687023,435.53820143,0.0001212,2]
[330564004,1719574697078,3074.87437864,0.0001212,2]
[330564005,1719574766739,374.96748227,9.999e-05,2]
[330564006,1719574794444,155.03027485,9.999e-05,2]
[330564007,1719574866491,776.11834176,9.999e-05,2]
[330564008,1719574882464,618.17611777,9.999e-05,2]
[330564010,1719574907426,768.73055895,9.999e-05,2]
[330564011,1719574922814,776.11834176,0.0001212,2]
[330564012,1719574964773,776.11834176,0.0001212,2]
[330564013,1719575007814,157.2682199,9.999e-05,2]
[330564014,1719575040244,1005.2631448,0.00013948,2]
[330564015,1719575044595,401.85436649,9.999e-05,2]
[330564016,1719575060314,157.2682199,0.0001212,2]
[330564017,1719575066390,940.06002357,9.999e-05,2]
[330564018,1719575070337,154.82195475,9.999e-05,2]
[330564019,1719575084886,309.6439095,9.999e-05,2]
[330564020,1719575086984,286.53452449,9.999e-05,2]
[330564021,1719575095103,539.51581982,0.0001212,2]
[330564022,1719575101346,200.61503685,9.999e-05,2]
[330564023,1719575105841,296.44534679,0.0001212,2]
[330564024,1719575110319,302.16643357,0.0001212,2]
[330564025,1719575111069,154.82195475,9.999e-05,2]
[330564026,1719575115508,402.85732737,9.999e-05,2]
[330564027,1719575117341,200.61503685,9.999e-05,2]
[330564028,1719575117461,195.57704168,9.999e-05,2]
[330564030,1719575127720,155.32949932,9.999e-05,2]
[330564031,1719575129488,286.53452449,0.0001212,2]
[330564032,1719575134144,162.91090393,9.999e-05,2]
[330564033,1719575134368,3000.0,0.00013887,2]
[330564034,1719575141065,154.82195475,9.999e-05,2]
[330564035,1719575146299,226.67659189,9.999e-05,2]
[330564036,1719575164857,200.61503685,0.0001212,2]
[330564037,1719575167952,196.38936347,0.0001212,2]
[330564038,1719575172906,286.38281047,0.0001212,2]
[330564039,1719575175788,776.11834176,9.999e-05,2]
[330564040,1719575186789,776.11834176,9.999e-05,2]
[330564041,1719575224846,338.46567637,0.0001212,2]
[330564042,1719575233299,885.20503448,0.0001212,2]
[330564043,1719575250192,24900.0,0.00013887,2]
[330564045,1719575307835,-724.40756172,0.00014445,2]
[330564047,1719575307898,-297.86605228,0.00014445,2]
[330564048,1719575307928,-300.0,0.00014758,2]
[330564050,1719575307957,-126.54150944,0.00014759,2]
[330564052,1719575307998,-442.32733268,0.00014759,2]
[330564064,1719575328900,-3925.7164855,0.00014794,2]
[330564065,1719575328925,-3074.2835145,0.00014998,2]
[330564066,1719575339405,273.37336231,9.9e-05,2]
[330564067,1719575346291,-300.0,0.00014997,2]
[330564068,1719575346313,-300.0,0.00014997,2]
[330564069,1719575346333,-2934.835767,0.00014998,2]
[330564070,1719575346354,-4424.20742997,0.00014998,2]
[330564071,1719575348144,273.37336231,9.9e-05,2]
[330564072,1719575357091,273.37336231,9.9e-05,2]
[330564073,1719575360119,-2863.37139625,0.00014998,2]
[330564074,1719575360140,-1433.52239716,0.00014999,2]
[330564075,1719575360161,-2124.49069545,0.00014999,2]
[330564076,1719575360181,-1568.73091691,0.00014999,2]
[330564077,1719575360202,-5928.31810857,0.00015,2]
[330564078,1719575360223,-1102.94117698,0.00015,2]
[330564079,1719575360244,-13469.2312779,0.00015353,2]
[330564080,1719575360266,-420.0,0.00016413,2]
[330564081,1719575360286,-420.0,0.00016497,2]
[330564082,1719575360306,-1370.16069534,0.0001672,2]
[330564083,1719575366036,525.6656446,0.00012,2]
[330564084,1719575366460,273.37336231,9.9e-05,2]
[330564085,1719575375511,273.37336231,9.9e-05,2]
[330564086,1719575380340,157.19006853,0.00012,2]
[330564087,1719575383548,273.37336231,9.9e-05,2]
[330564088,1719575388371,4111.12943831,0.00012,2]
[330564089,1719575402325,1433.52239716,0.00012,2]
[330564122,1719575431776,-441.77416364,0.00014998,2]
[330564124,1719575431785,-1104.21620924,0.0001672,2]
[330564131,1719575431841,-448.92802174,0.0001672,2]
[330564134,1719575431850,-276.23399711,0.00016812,2]
[330564137,1719575431860,-565.7746747,0.00016832,2]
[330564140,1719575431869,-2029.26330645,0.00018664,2]
[330564180,1719575437766,-894.04161986,0.00018664,2]
[330564181,1719575437776,-828.45793298,0.00018798,2]
[330564183,1719575437786,-150.0,0.000189,2]
[330564185,1719575437796,-190.71173259,0.00019065,2]
[330564187,1719575437808,-300.0,0.00019165,2]
[330564188,1719575437817,-300.0,0.00019165,2]
[330564190,1719575437826,-658.48871456,0.00019166,2]
[330564191,1719575437838,-378.33321948,0.00019166,2]
[330564197,1719575439906,-1268.41937026,0.00019166,2]
[330564407,1719575446181,-6827.44819818,0.00019166,2]
[330564409,1719575446190,-175.55180182,0.00019168,2]
[330564530,1719575597145,1547.82,0.0001401,2]
[330564539,1719575864022,1118.32966201,9.999e-05,2]
[330564540,1719575973472,154.83742071,9.999e-05,2]
[330564541,1719575975384,9014.80435406,0.0001212,2]
[330564542,1719576003893,580.70270839,9.999e-05,2]
[330564543,1719576018318,156.55438487,9.999e-05,2]
[330564544,1719576077029,1117.74863961,9.999e-05,2]
[330564545,1719576081120,402.64531294,9.999e-05,2]
[330564546,1719576084982,308.5450188,0.00013514,2]
[330564547,1719576138607,155.30237999,9.999e-05,2]
[330564548,1719576140317,208.37564863,9.999e-05,2]
[330564549,1719576194045,238.42905543,9.999e-05,2]
[330564550,1719576202265,15651.9675632,0.00013622,2]
[330564551,1719576221096,286.53452449,9.999e-05,2]
[330564552,1719576237186,273.37336231,9.9e-05,2]
[330564553,1719576245875,273.37336231,9.9e-05,2]
[330564554,1719576255229,273.37336231,9.9e-05,2]
[330564562,1719576264186,273.37336231,9.9e-05,2]
[330564563,1719576267506,154.82195475,0.0001212,2]
[330564564,1719576272652,273.37336231,9.9e-05,2]
[330564565,1719576277563,222.3309607,0.0001212,2]
[330564567,1719576281331,273.37336231,9.9e-05,2]
[330564568,1719576281669,530.94,0.00010959,2]
[330564569,1719576290804,273.37336231,9.9e-05,2]
[330564570,1719576292203,442.45,0.00010959,2]
[330564571,1719576296894,511.136807,0.00013699,2]
[330564572,1719576299220,273.37336231,9.9e-05,2]
[330564573,1719576302711,325.8,0.00010959,2]
[330564574,1719576308942,273.37336231,9.9e-05,2]
[330564575,1719576317147,273.37336231,9.9e-05,2]
[330564576,1719576322510,220.356535,0.00013283,2]
[330564577,1719576326016,273.37336231,9.9e-05,2]
[330564578,1719576334115,273.37336231,9.9e-05,2]
[330564580,1719576346407,273.37336231,9.9e-05,2]
[330564581,1719576355113,273.37336231,9.9e-05,2]
[330564582,1719576363417,273.37336231,9.9e-05,2]
[330564583,1719576372804,273.37336231,9.9e-05,2]
[330564584,1719576382601,273.37336231,9.9e-05,2]
[330564585,1719576383303,154.83742071,0.00012,2]
[330564586,1719576386211,309.597524,0.00012,2]
[330564587,1719576390877,273.37336231,9.9e-05,2]
[330564589,1719576399900,273.37336231,9.9e-05,2]
[330564590,1719576409605,273.37336231,9.9e-05,2]
[330564591,1719576418875,273.37336231,9.9e-05,2]
[330564592,1719576418909,3000.0,0.00013699,2]
[330564593,1719576419683,4700.33890069,0.00012,2]
[330564594,1719576426995,273.37336231,9.9e-05,2]
[330564595,1719576427146,-250.0,0.00014082,2]
[330564596,1719576427166,-300.0,0.00014249,2]
[330564597,1719576427189,-300.0,0.00014249,2]
[330564598,1719576427213,-431.77416364,0.0001425,2]
[330564599,1719576435794,273.37336231,9.9e-05,2]
[330564600,1719576438267,309.5511354,0.00012,2]
[330564601,1719576443878,273.37336231,9.9e-05,2]
[330564602,1719576452771,273.37336231,9.9e-05,2]
[330564603,1719576460825,273.37336231,9.9e-05,2]
[330564604,1719576470692,273.37336231,9.9e-05,2]
[330564605,1719576479800,273.37336231,9.9e-05,2]
[330564606,1719576488797,273.37336231,9.9e-05,2]
[330564607,1719576496627,4689.21379075,0.00012,2]
[330564608,1719576498156,273.37336231,9.9e-05,2]
[330564609,1719576506666,273.37336231,9.9e-05,2]
[330564610,1719576515628,273.37336231,9.9e-05,2]
[330564611,1719576523832,273.37336231,9.9e-05,2]
[330564612,1719576533080,273.37336231,9.9e-05,2]
[330564613,1719576541751,273.37336231,9.9e-05,2]
[330564614,1719576550197,-8971.92296412,0.00014229,2]
[330564615,1719576550719,273.37336231,9.9e-05,2]
[330564617,1719576555697,155.09594453,0.00012,2]
[330564618,1719576556113,-15928.07703588,0.00014229,2]
[330564619,1719576556135,-300.0,0.00014249,2]
[330564620,1719576556159,-1169.2100316,0.00014587,2]
[330564621,1719576556180,-1433.52239716,0.00014794,2]
[330564622,1719576556201,-197.00063032,0.000149,2]
[330564623,1719576556221,-197.00063032,0.000149,2]
[330564624,1719576556241,-1000.0,0.00014997,2]
[330564625,1719576556262,-300.0,0.00014997,2]
[330564626,1719576556282,-10562.28786365,0.00014998,2]
[330564627,1719576556302,-3924.67012836,0.00014999,2]
[330564628,1719576556321,-1590.32056228,0.00015,2]
[330564629,1719576556341,-947.59886703,0.00015,2]
[330564630,1719576556361,-154.99577588,0.00015,2]
[330564631,1719576556382,-420.0,0.00015674,2]
[330564632,1719576556404,-2930.04141717,0.00016155,2]
[330564633,1719576556425,-34898.08290766,0.00016255,2]
[330564634,1719576556445,-1000.0,0.00016367,2]
[330564635,1719576556466,-420.0,0.00016413,2]
[330564636,1719576556488,-276.23399711,0.000165,2]
[330564637,1719576556511,-2930.04141716,0.00016886,2]
[330564638,1719576556531,-166.34068276,0.00016982,2]
[330564639,1719576556551,-587.0,0.00017241,2]
[330564640,1719576556572,-2930.04141716,0.00017617,2]
[330564641,1719576556591,-1000.0,0.00017737,2]
[330564642,1719576556611,-587.0,0.00017964,2]
[330564643,1719576556631,-191.38036061,0.00018,2]
[330564644,1719576556652,-155.33399751,0.00018,2]
[330564645,1719576556674,-825.99151127,0.00018,2]
[330564646,1719576556694,-155.0570109,0.00018,2]
[330564647,1719576556715,-2930.04141716,0.00018347,2]
[330564648,1719576556735,-154.82195475,0.0001858,2]
[330564649,1719576556756,-814.5,0.00018676,3]
[330564650,1719576556776,-5283.67863355,0.00018754,2]
[330564651,1719576556797,-814.54,0.00018793,3]
[330564652,1719576558965,210.04761257,9.9e-05,2]
[330564653,1719576558988,63.32574974,9.9e-05,2]
[330564654,1719576567964,163.738245,9.9e-05,2]
[330564655,1719576567989,109.63511731,9.9e-05,2]
[330564656,1719576576117,273.37336231,9.9e-05,2]
[330564657,1719576585375,273.37336231,9.9e-05,2]
[330564658,1719576593570,273.37336231,9.9e-05,2]
[330564659,1719576601999,273.37336231,9.9e-05,2]
[330564660,1719576610306,273.37336231,9.9e-05,2]
[330564661,1719576619818,273.37336231,9.9e-05,2]
[330564662,1719576627494,249.78340205,0.00012,2]
[330564663,1719576629064,273.37336231,9.9e-05,2]
[330564681,1719576637557,273.37336231,9.9e-05,2]
[330564703,1719576638031,-1910.52564384,0.00015,2]
[330564705,1719576638043,-516.6151856,0.00015,2]
[330564727,1719576638267,-1087.07962084,0.00015,2]
[330564847,1719576640162,-22548.05260096,0.00015,2]
[330564849,1719576640172,-276.83744566,0.000165,2]
[330564851,1719576640183,-282.2716922,0.0001858,2]
[330564853,1719576640194,-300.0,0.00018899,2]
[330564855,1719576640204,-300.0,0.00018899,2]
[330564857,1719576640213,-25447.96173528,0.000189,2]
[330564859,1719576640225,-14599.47805734,0.000189,2]
[330564861,1719576640237,-83690.76263238,0.000189,2]
[330564863,1719576640247,-1967.459226,0.000189,2]
[330564865,1719576640258,-1967.459226,0.000189,2]
[330564868,1719576640268,-151.0,0.000189,2]
[330564869,1719576640278,-151.0,0.000189,2]
[330564871,1719576640287,-151.0,0.000189,2]
[330564873,1719576640297,-152.253723,0.000189,2]
[330564875,1719576640307,-151.0,0.000189,2]
[330564877,1719576640316,-1364.448675,0.000189,2]
[330564879,1719576640329,-1432.4737581,0.000189,2]
[330564881,1719576640338,-1364.448675,0.000189,2]
[330564883,1719576640348,-197.6634015,0.00019,2]
[330564885,1719576640358,-250.0,0.00019041,2]
[330564887,1719576640368,-2930.04141716,0.00019078,2]
[330564890,1719576640378,-1000.0,0.00019107,2]
[330564891,1719576640389,-151.0,0.00019158,2]
[330564893,1719576640398,-162.172102,0.00019158,2]
[330564895,1719576640408,-1364.448675,0.00019158,2]
[330564897,1719576640417,-42422.73697095,0.00019158,2]
[330564899,1719576640429,-437.39943845,0.00019158,2]
[330565019,1719576643157,-649.17805425,0.00019158,2]
[330565021,1719576643304,-715.27062075,0.00019158,2]
[330565022,1719576643314,-8305.43107574,0.00019158,2]
[330565023,1719576643326,-289.89676959,0.00019158,2]
[330565024,1719576643338,-1010.95391355,0.00019158,2]
[330565118,1719576645945,273.37336231,9.9e-05,2]
[330565119,1719576646257,-86.04515705,0.00019158,2]
[330565120,1719576646640,-19043.58490691,0.00019158,2]
[330565121,1719576646656,-305.47,0.00019158,2]
[330565282,1719576655161,273.37336231,9.9e-05,2]
[330565284,1719576663530,273.37336231,9.9e-05,2]
[330565285,1719576672937,1433.52239716,0.00012,2]
[330565286,1719576676372,273.37336231,9.9e-05,2]
[330565287,1719576708115,273.37336231,9.9e-05,2]
[330565288,1719576717262,273.37336231,9.9e-05,2]
[330565289,1719576725132,154.82195475,0.00012,2]
[330565290,1719576725454,273.37336231,9.9e-05,2]
[330565291,1719576726685,10562.28786365,0.00012,2]
[330565292,1719576729408,1082.91130671,0.00012,2]
[330565293,1719576731133,2129.2320514,0.00012,2]
[330565294,1719576731286,160.58708484,0.00012,2]
[330565295,1719576732828,4689.21379075,0.00012,2]
[330565296,1719576732872,1433.52239716,0.00012,2]
[330565297,1719576733442,1772.04554263,0.00012,2]
[330565298,1719576733574,842.64804764,0.00012,2]
[330565299,1719576733692,292.99777244,0.00012,2]
[330565300,1719576734860,516.79936011,0.00012,2]
[330565301,1719576735003,5254.40949514,0.00012,2]
[330565302,1719576735238,273.37336231,9.9e-05,2]
[330565303,1719576735915,309.59753017,0.00012,2]
[330565304,1719576741613,179.54081427,0.00012,2]
[330565305,1719576741809,531.11088939,0.00012,2]
[330565306,1719576742498,318.0694556,0.00012,2]
[330565307,1719576742649,299.76773289,0.00012,2]
[330565308,1719576743418,723.78639686,0.00012,2]
[330565309,1719576744650,273.37336231,9.9e-05,2]
[330565310,1719576744898,597.70730701,0.00012,2]
[330565311,1719576747250,401.65252924,0.00012,2]
[330565312,1719576753420,273.37336231,9.9e-05,2]
[330565313,1719576761733,273.37336231,9.9e-05,2]
[330565314,1719576770552,273.37336231,9.9e-05,2]
[330565315,1719576778394,6976.32251601,0.00012,2]
[330565316,1719576779476,273.37336231,9.9e-05,2]
[330565317,1719576780087,154.82195475,0.00012,2]
[330565318,1719576788218,273.37336231,9.9e-05,2]
[330565319,1719576788356,1433.52239716,0.00012,2]
[330565320,1719576789436,1564.60214875,0.00012,2]
[330565321,1719576797482,273.37336231,9.9e-05,2]
[330565322,1719576807249,273.37336231,9.9e-05,2]
[330565323,1719576815728,273.37336231,9.9e-05,2]
[330565324,1719576824878,273.37336231,9.9e-05,2]
[330565325,1719576833320,273.37336231,9.9e-05,2]
[330565326,1719576843380,273.37336231,9.9e-05,2]
[330565327,1719576853308,1433.52239716,0.00012,2]
[330565328,1719576853358,273.37336231,9.9e-05,2]
[330565329,1719576861973,273.37336231,9.9e-05,2]
[330565330,1719576871549,273.37336231,9.9e-05,2]
[330565331,1719576878103,245.5391087,0.00012,2]
[330565332,1719576879860,273.37336231,9.9e-05,2]
[330565333,1719576888911,273.37336231,9.9e-05,2]
[330565334,1719576897862,273.37336231,9.9e-05,2]
[330565335,1719576899590,309.61298378,9.999e-05,2]
[330565336,1719576907202,273.37336231,9.9e-05,2]
[330565337,1719576915627,273.37336231,9.9e-05,2]
[330565338,1719576923814,273.37336231,9.9e-05,2]
[330565339,1719576932487,273.37336231,9.9e-05,2]
[330565340,1719576940392,597.70730701,9.999e-05,2]
[330565341,1719576941239,273.37336231,9.9e-05,2]
[330565342,1719576966411,1433.52239716,0.00012,2]
[330565343,1719576977582,1670.98225881,0.00012,2]
[330565346,1719577114094,286.53452449,9.999e-05,2]
[330565347,1719577215727,1062.22523661,0.0001212,2]
[330565348,1719577227101,263.17588675,9.999e-05,2]
[330565349,1719577287540,-10.0,0.00014165,2]
[330565350,1719577287557,-290.0,0.00014165,2]
[330565351,1719577287567,-10.0,0.00014165,2]
[330565673,1719577605566,195.47966853,9.999e-05,2]
[330565674,1719577629089,24900.0,0.00013624,2]
[330565675,1719577649148,-3000.0,0.00014112,2]
[330565676,1719577649168,-300.0,0.00014165,2]
[330565677,1719577649192,-300.0,0.00014165,2]
[330565678,1719577649216,-5189.09766,0.00014166,2]
[330565681,1719577696563,-300.0,0.00014165,2]
[330565682,1719577696593,-419.11931434,0.00014166,2]
[330565683,1719577696636,-719.11931434,0.00014166,2]
[330565684,1719577696674,-232.18697242,0.00014166,2]
[330565685,1719577721521,-752.52782636,0.00014166,2]
[330565686,1719577721717,-464.4464284,0.00014166,2]
[330565687,1719577721926,-752.52782636,0.00014166,2]
[330565688,1719577725424,208.4315416,9.999e-05,2]
[330565689,1719577745155,-300.0,0.00014165,2]
[330565690,1719577745175,-224.0,0.00014165,2]
[330565691,1719577745194,-9947.5184,0.00014166,2]
[330565692,1719577746626,-773.96784818,0.00014166,2]
[330565693,1719577746671,-773.96784818,0.00014166,2]
[330565694,1719577753538,-1924.01292062,0.00014166,2]
[330565695,1719577753562,-2680.60063706,0.00014794,2]
[330565696,1719577753583,-208.78500633,0.00014794,2]
[330565697,1719577753606,-197.00063034,0.000149,2]
[330565698,1719577753631,-532.16224229,0.00015,2]
[330565699,1719577767247,-17798.25969939,0.00015,2]
[330565700,1719577767269,-420.0,0.00015581,2]
[330565701,1719577767291,-155.00269854,0.00016255,2]
[330565702,1719577767314,-275.67585,0.00016392,2]
[330565703,1719577767335,-587.0,0.00017139,2]
[330565704,1719577767355,-897.50099017,0.00017171,2]
[330565705,1719577767376,-289.04821488,0.00017171,2]
[330565708,1719577825228,242.31003536,0.00017171,2]
[330565723,1719577832775,-5283.67863355,0.00018807,2]
[330565725,1719577832787,-954.9825054,0.000189,2]
[330565727,1719577832799,-250.0,0.00019041,2]
[330565729,1719577832810,-190.71173259,0.00019058,2]
[330565731,1719577832821,-749.87,0.00019148,3]
[330565743,1719577833258,-259.0,0.00019157,2]
[330565745,1719577833269,-12047.25712846,0.00019158,2]
[330566096,1719577839379,-2002.49286188,0.00019158,2]